[Event "MČR juniorů a juniorek v rapid šachu 2023"]
[Site "Czech Republic"]
[Date "2023.09.23"]
[Round "2.10"]
[White "Steinbauer, Sebastian"]
[Black "Zadrapa, Jakub"]
[Result "1-0"]
[TimeControl "20 min + 5 sec per move"]
[WhiteFideId "399272"]
[BlackFideId "23714778"]
[WhiteElo "1880"]
[BlackElo "1696"]

1. e4 {[%clk 00:20:08]} e5 {[%clk 00:20:09]} {[%emt 00:00:01]} 2. Nf3 {[%clk
00:20:12]} Nc6 {[%clk 00:20:13]} 3. Bc4 {[%clk 00:20:16]} {[%emt 00:00:02]} Nf6
{[%clk 00:20:17]} 4. Ng5 {[%clk 00:20:21]} d5 {[%clk 00:20:21]} {[%emt
00:00:01]} 5. exd5 {[%clk 00:20:25]} Na5 {[%clk 00:20:25]} 6. Bb5+ {[%clk
00:20:29]} c6 {[%clk 00:20:30]} 7. dxc6 {[%clk 00:20:33]} {[%emt 00:00:03]}
bxc6 {[%clk 00:20:34]} {[%emt 00:00:02]} 8. Be2 {[%clk 00:20:37]} h6 {[%clk
00:20:24]} {[%emt 00:00:15]} 9. Nf3 {[%clk 00:20:41]} e4 {[%clk 00:20:26]}
{[%emt 00:00:03]} 10. Ne5 {[%clk 00:20:45]} Bd6 {[%clk 00:20:15]} {[%emt
00:00:17]} 11. d4 {[%clk 00:20:47]} {[%emt 00:00:04]} exd3 {[%clk 00:19:59]}
{[%emt 00:00:21]} 12. Nxd3 {[%clk 00:20:50]} {[%emt 00:00:02]} O-O {[%clk
00:19:49]} {[%emt 00:00:15]} 13. Bf4 {[%clk 00:19:51]} {[%emt 00:01:04]} Re8
{[%clk 00:19:24]} {[%emt 00:00:30]} 14. Nc3 {[%clk 00:17:28]} {[%emt 00:02:28]}
Ba6 {[%clk 00:18:00]} {[%emt 00:01:29]} 15. Bxd6 {[%clk 00:16:58]} {[%emt
00:00:35]} Qxd6 {[%clk 00:17:56]} {[%emt 00:00:09]} 16. O-O {[%clk 00:16:58]}
{[%emt 00:00:05]} Rad8 {[%clk 00:17:37]} {[%emt 00:00:24]} 17. h3 {[%clk
00:16:51]} {[%emt 00:00:12]} c5 {[%clk 00:17:00]} {[%emt 00:00:42]} 18. Qc1
{[%clk 00:11:17]} {[%emt 00:05:39]} Nc6 {[%clk 00:13:34]} {[%emt 00:03:32]} 19.
Nf4 {[%clk 00:09:13]} {[%emt 00:02:09]} Nd4 {[%clk 00:13:15]} {[%emt 00:00:24]}
20. Bxa6 {[%clk 00:09:11]} {[%emt 00:00:07]} Qxa6 {[%clk 00:13:18]} {[%emt
00:00:01]} 21. Re1 {[%clk 00:08:32]} {[%emt 00:00:44]} Rxe1+ {[%clk 00:12:30]}
{[%emt 00:00:53]} 22. Qxe1 {[%clk 00:08:36]} Nxc2 {[%clk 00:12:29]} {[%emt
00:00:06]} 23. Qf1 {[%clk 00:08:40]} Qxf1+ {[%clk 00:08:59]} {[%emt 00:03:35]}
24. Rxf1 {[%clk 00:08:43]} {[%emt 00:00:02]} Rd2 {[%clk 00:08:41]} {[%emt
00:00:23]} 25. Rd1 {[%clk 00:08:39]} {[%emt 00:00:09]} Rxd1+ {[%clk 00:07:45]}
{[%emt 00:01:01]} 26. Nxd1 {[%clk 00:08:43]} {[%emt 00:00:02]} Ne4 {[%clk
00:05:52]} {[%emt 00:01:59]} 27. Nd3 {[%clk 00:07:42]} {[%emt 00:01:05]} f6
{[%clk 00:04:13]} {[%emt 00:01:44]} 28. Kf1 {[%clk 00:05:58]} {[%emt 00:01:48]}
Kf7 {[%clk 00:03:45]} {[%emt 00:00:34]} 29. f3 {[%clk 00:04:53]} {[%emt
00:01:10]} c4 {[%clk 00:01:31]} {[%emt 00:02:20]} 30. Nf4 {[%clk 00:03:11]}
{[%emt 00:01:46]} Nc5 {[%clk 00:01:01]} {[%emt 00:00:35]} 31. Ke2 {[%clk
00:02:11]} {[%emt 00:01:04]} g5 {[%clk 00:00:39]} {[%emt 00:00:28]} 32. Nd5
{[%clk 00:01:57]} {[%emt 00:00:19]} Ke6 {[%clk 00:00:27]} {[%emt 00:00:17]} 33.
N5e3 {[%clk 00:01:26]} {[%emt 00:00:36]} Nd4+ {[%clk 00:00:08]} {[%emt
00:00:25]} 34. Kd2 {[%clk 00:01:25]} {[%emt 00:00:06]} Na4 {[%clk 00:00:12]} 35.
Nxc4 {[%clk 00:01:17]} {[%emt 00:00:14]} Kd5 {[%clk 00:00:16]} 36. Nde3+ {[%clk
00:01:09]} {[%emt 00:00:12]} Kc5 {[%clk 00:00:20]} {[%emt 00:00:01]} 37. b3
{[%clk 00:00:55]} {[%emt 00:00:19]} Nb6 {[%clk 00:00:24]} 38. Nxb6 {[%clk
00:00:54]} {[%emt 00:00:07]} axb6 {[%clk 00:00:28]} 39. Ng4 {[%clk 00:00:53]}
{[%emt 00:00:05]} f5 {[%clk 00:00:22]} {[%emt 00:00:12]} 40. Nxh6 {[%clk
00:00:56]} {[%emt 00:00:01]} Kd5 {[%clk 00:00:20]} {[%emt 00:00:07]} 41. Nf7
{[%clk 00:00:56]} {[%emt 00:00:05]} Ne6 {[%clk 00:00:17]} {[%emt 00:00:07]} 42.
g3 {[%clk 00:00:46]} {[%emt 00:00:15]} g4 {[%clk 00:00:09]} {[%emt 00:00:14]}
43. fxg4 {[%clk 00:00:45]} {[%emt 00:00:06]} fxg4 {[%clk 00:00:13]} {[%emt
00:00:01]} 44. hxg4 {[%clk 00:00:44]} {[%emt 00:00:06]} Nc5 {[%clk 00:00:14]}
{[%emt 00:00:04]} 45. Ke3 {[%clk 00:00:41]} {[%emt 00:00:07]} Ke6 {[%clk
00:00:18]} {[%emt 00:00:02]} 46. Ng5+ {[%clk 00:00:43]} {[%emt 00:00:03]} Ke5
{[%clk 00:00:20]} {[%emt 00:00:03]} 47. Nf3+ {[%clk 00:00:46]} {[%emt
00:00:02]} Kf6 {[%clk 00:00:23]} {[%emt 00:00:02]} 48. g5+ {[%clk 00:00:40]}
{[%emt 00:00:10]} Kf5 {[%clk 00:00:26]} {[%emt 00:00:03]} 49. b4 {[%clk
00:00:30]} {[%emt 00:00:15]} Na6 {[%clk 00:00:22]} {[%emt 00:00:09]} 50. g4+
{[%clk 00:00:30]} {[%emt 00:00:05]} Kg6 {[%clk 00:00:15]} {[%emt 00:00:12]} 51.
a3 {[%clk 00:00:32]} {[%emt 00:00:03]} Nc7 {[%clk 00:00:19]} 52. Ke4 {[%clk
00:00:30]} {[%emt 00:00:08]} Nb5 {[%clk 00:00:13]} {[%emt 00:00:11]} 53. Kd5
{[%clk 00:00:21]} {[%emt 00:00:13]} Nxa3 {[%clk 00:00:16]} {[%emt 00:00:02]} 54.
Kc6 {[%clk 00:00:25]} b5 {[%clk 00:00:16]} {[%emt 00:00:04]} 55. Kc5 {[%clk
00:00:25]} {[%emt 00:00:05]} Kf7 {[%clk 00:00:15]} {[%emt 00:00:06]} 56. Ne5+
{[%clk 00:00:28]} {[%emt 00:00:03]} Ke6 {[%clk 00:00:19]} 57. g6 {[%clk
00:00:30]} {[%emt 00:00:03]} Kf6 {[%clk 00:00:14]} {[%emt 00:00:10]} 58. g5+
{[%clk 00:00:32]} {[%emt 00:00:04]} Kg7 {[%clk 00:00:18]} 59. Kc6 {[%clk
00:00:34]} {[%emt 00:00:03]} Nc4 {[%clk 00:00:17]} {[%emt 00:00:06]} 60. Nf3
{[%clk 00:00:29]} {[%emt 00:00:09]} Kxg6 {[%clk 00:00:15]} {[%emt 00:00:07]} 61.
Kxb5 {[%clk 00:00:33]} {[%emt 00:00:02]} Nd6+ {[%clk 00:00:08]} {[%emt
00:00:13]} 62. Kc6 {[%clk 00:00:33]} {[%emt 00:00:04]} Nc8 {[%clk 00:00:12]}
{[%emt 00:00:02]} 63. b5 {[%clk 00:00:37]} {[%emt 00:00:02]} Kf5 {[%clk
00:00:13]} {[%emt 00:00:04]} 64. b6 {[%clk 00:00:38]} {[%emt 00:00:04]} Ne7+
{[%clk 00:00:06]} {[%emt 00:00:11]} 65. Kd6 {[%clk 00:00:29]} {[%emt 00:00:14]}
Nc8+ {[%clk 00:00:07]} {[%emt 00:00:04]} 66. Kc7 {[%clk 00:00:32]} {[%emt
00:00:02]} Nxb6 {[%clk 00:00:10]} {[%emt 00:00:02]} 67. Kxb6 {[%clk 00:00:36]}
{[%emt 00:00:02]} 1-0

[Event "MČR juniorů a juniorek v rapid šachu 2023"]
[Site "Czech Republic"]
[Date "2023.09.23"]
[Round "2.11"]
[White "Zadrapova, Amalie"]
[Black "Merinsky, Vaclav"]
[Result "1-0"]
[TimeControl "20 min + 5 sec per move"]
[WhiteFideId "23710276"]
[BlackFideId "390062"]
[WhiteElo "1590"]
[BlackElo "1869"]

1. e4 {[%clk 00:20:08]} {[%emt 00:00:02]} e5 {[%clk 00:20:09]} 2. Nf3 {[%clk
00:20:12]} {[%emt 00:00:01]} Nc6 {[%clk 00:20:13]} {[%emt 00:00:02]} 3. Bb5
{[%clk 00:20:15]} {[%emt 00:00:01]} a6 {[%clk 00:20:04]} {[%emt 00:00:14]} 4.
Ba4 {[%clk 00:20:18]} {[%emt 00:00:01]} Bd6 {[%clk 00:19:48]} {[%emt 00:00:21]}
5. O-O {[%clk 00:20:11]} {[%emt 00:00:13]} Nf6 {[%clk 00:19:45]} {[%emt
00:00:07]} 6. Re1 {[%clk 00:20:07]} {[%emt 00:00:10]} O-O {[%clk 00:19:43]}
{[%emt 00:00:06]} 7. c3 {[%clk 00:19:50]} {[%emt 00:00:23]} b5 {[%clk
00:19:31]} {[%emt 00:00:16]} 8. Bc2 {[%clk 00:19:44]} {[%emt 00:00:12]} Bb7
{[%clk 00:19:16]} {[%emt 00:00:20]} 9. d3 {[%clk 00:19:37]} {[%emt 00:00:13]}
Ne7 {[%clk 00:19:03]} {[%emt 00:00:15]} 10. Nbd2 {[%clk 00:19:08]} {[%emt
00:00:37]} Ng6 {[%clk 00:18:37]} {[%emt 00:00:30]} 11. Nf1 {[%clk 00:19:08]}
{[%emt 00:00:05]} c5 {[%clk 00:17:26]} {[%emt 00:01:16]} 12. Ng3 {[%clk
00:18:15]} {[%emt 00:00:58]} Re8 {[%clk 00:14:11]} {[%emt 00:03:19]} 13. Nf5
{[%clk 00:16:55]} {[%emt 00:01:25]} Bc7 {[%clk 00:13:19]} {[%emt 00:00:57]} 14.
h3 {[%clk 00:13:08]} {[%emt 00:03:53]} d5 {[%clk 00:10:57]} {[%emt 00:02:27]}
15. exd5 {[%clk 00:11:59]} {[%emt 00:01:14]} Qxd5 {[%clk 00:10:52]} {[%emt
00:00:10]} 16. Ng3 {[%clk 00:06:05]} {[%emt 00:05:59]} Rad8 {[%clk 00:07:05]}
{[%emt 00:03:52]} 17. Bg5 {[%clk 00:05:29]} {[%emt 00:00:41]} Nf4 {[%clk
00:02:27]} {[%emt 00:04:42]} 18. Bxf4 {[%clk 00:03:56]} {[%emt 00:01:39]} exf4
{[%clk 00:02:28]} {[%emt 00:00:04]} 19. Nf1 {[%clk 00:02:05]} {[%emt 00:01:57]}
Qh5 {[%clk 00:02:00]} {[%emt 00:00:31]} 20. N1h2 {[%clk 00:02:05]} {[%emt
00:00:05]} Qd5 {[%clk 00:01:16]} {[%emt 00:00:49]} 21. Rxe8+ {[%clk 00:01:17]}
{[%emt 00:00:55]} Rxe8 {[%clk 00:01:18]} {[%emt 00:00:02]} 22. d4 {[%clk
00:01:11]} {[%emt 00:00:11]} Bb6 {[%clk 00:00:34]} {[%emt 00:00:49]} 23. dxc5
{[%clk 00:00:50]} {[%emt 00:00:26]} Qxc5 {[%clk 00:00:32]} {[%emt 00:00:06]} 24.
Qd4 {[%clk 00:00:41]} {[%emt 00:00:15]} Qc6 {[%clk 00:00:21]} {[%emt 00:00:15]}
25. Qd2 {[%clk 00:00:31]} {[%emt 00:00:16]} Ne4 26. Bxe4 {[%clk 00:00:31]} Qxe4
{[%clk 00:00:10]} {[%emt 00:00:01]} 27. Re1 {[%clk 00:00:26]} {[%emt 00:00:11]}
Be3 {[%clk 00:00:11]} {[%emt 00:00:03]} 28. fxe3 {[%clk 00:00:25]} {[%emt
00:00:07]} fxe3 {[%clk 00:00:14]} {[%emt 00:00:02]} 29. Qe2 {[%clk 00:00:26]}
{[%emt 00:00:04]} f5 {[%clk 00:00:12]} {[%emt 00:00:06]} 30. Rd1 {[%clk
00:00:22]} {[%emt 00:00:08]} f4 {[%clk 00:00:14]} {[%emt 00:00:03]} 31. Ng4
{[%clk 00:00:23]} {[%emt 00:00:05]} h5 {[%clk 00:00:16]} {[%emt 00:00:03]} 32.
Ngh2 {[%clk 00:00:23]} {[%emt 00:00:05]} Rc8 {[%clk 00:00:16]} {[%emt
00:00:05]} 33. Rd4 {[%clk 00:00:25]} {[%emt 00:00:03]} Qb1+ {[%clk 00:00:15]}
{[%emt 00:00:06]} 34. Rd1 {[%clk 00:00:24]} {[%emt 00:00:05]} Qf5 {[%clk
00:00:18]} {[%emt 00:00:03]} 35. Nd4 {[%clk 00:00:21]} {[%emt 00:00:08]} Qg6
{[%clk 00:00:20]} {[%emt 00:00:03]} 36. Nhf3 {[%clk 00:00:23]} {[%emt
00:00:03]} Ba8 {[%clk 00:00:20]} {[%emt 00:00:06]} 37. Rf1 {[%clk 00:00:25]}
{[%emt 00:00:02]} Rf8 {[%clk 00:00:20]} {[%emt 00:00:05]} 38. Ne5 {[%clk
00:00:19]} {[%emt 00:00:12]} Qf6 {[%clk 00:00:19]} {[%emt 00:00:05]} 39. Nd3
{[%clk 00:00:22]} {[%emt 00:00:02]} Qd6 {[%clk 00:00:15]} {[%emt 00:00:09]} 40.
Ne1 {[%clk 00:00:14]} {[%emt 00:00:13]} b4 {[%clk 00:00:17]} {[%emt 00:00:03]}
41. Nef3 {[%clk 00:00:17]} {[%emt 00:00:02]} bxc3 {[%clk 00:00:19]} {[%emt
00:00:02]} 42. bxc3 {[%clk 00:00:20]} {[%emt 00:00:03]} Be4 {[%clk 00:00:19]}
{[%emt 00:00:05]} 43. Ng5 {[%clk 00:00:19]} {[%emt 00:00:06]} Bd5 {[%clk
00:00:20]} {[%emt 00:00:04]} 44. Qxh5 {[%clk 00:00:21]} {[%emt 00:00:03]} Rf6
{[%clk 00:00:19]} {[%emt 00:00:05]} 45. Qe2 {[%clk 00:00:19]} {[%emt 00:00:08]}
Rg6 {[%clk 00:00:16]} {[%emt 00:00:04]} 46. Ngf3 {[%clk 00:00:22]} {[%emt
00:00:02]} Qd8 {[%clk 00:00:21]} {[%emt 00:00:04]} 47. Rb1 {[%clk 00:00:24]}
{[%emt 00:00:03]} Qa5 {[%clk 00:00:22]} {[%emt 00:00:05]} 48. Rb8+ {[%clk
00:00:24]} {[%emt 00:00:04]} Kh7 {[%clk 00:00:25]} {[%emt 00:00:02]} 49. Qe1
{[%clk 00:00:22]} {[%emt 00:00:08]} Qxa2 {[%clk 00:00:22]} {[%emt 00:00:07]} 50.
Qh4+ {[%clk 00:00:25]} {[%emt 00:00:02]} Rh6 {[%clk 00:00:24]} {[%emt
00:00:02]} 51. Ng5+ {[%clk 00:00:25]} {[%emt 00:00:05]} Kg6 {[%clk 00:00:26]}
{[%emt 00:00:02]} 52. Rb6+ {[%clk 00:00:29]} {[%emt 00:00:03]} Be6 {[%clk
00:00:19]} {[%emt 00:00:09]} 53. Rxe6+ {[%clk 00:00:32]} {[%emt 00:00:05]} Qxe6
{[%clk 00:00:15]} {[%emt 00:00:03]} 1-0

[Event "MČR juniorů a juniorek v rapid šachu 2023"]
[Site "Czech Republic"]
[Date "2023.09.23"]
[Round "2.12"]
[White "Pressler, Tobias"]
[Black "Pejrimovsky, Tadeas Rubel"]
[Result "1-0"]
[TimeControl "20 min + 5 sec per move"]
[WhiteFideId "23715359"]
[BlackFideId "23709537"]
[WhiteElo "1859"]
[BlackElo "1679"]

1. e4 {[%clk 00:20:06]} {[%emt 00:00:03]} c5 {[%clk 00:20:08]} {[%emt
00:00:03]} 2. Nc3 {[%clk 00:20:05]} {[%emt 00:00:06]} e6 {[%clk 00:19:59]}
{[%emt 00:00:14]} 3. d4 {[%clk 00:20:04]} {[%emt 00:00:05]} cxd4 {[%clk
00:19:50]} {[%emt 00:00:13]} 4. Qxd4 {[%clk 00:20:07]} {[%emt 00:00:03]} Nc6
{[%clk 00:19:54]} {[%emt 00:00:01]} 5. Qd3 {[%clk 00:20:10]} {[%emt 00:00:03]}
a6 {[%clk 00:19:21]} {[%emt 00:00:38]} 6. Bf4 {[%clk 00:19:53]} {[%emt
00:00:21]} Nf6 {[%clk 00:12:02]} {[%emt 00:07:25]} 7. Be2 {[%clk 00:16:50]}
{[%emt 00:03:08]} Be7 {[%clk 00:10:06]} {[%emt 00:02:00]} 8. O-O-O {[%clk
00:13:55]} {[%emt 00:03:00]} O-O {[%clk 00:09:02]} {[%emt 00:01:09]} 9. h4
{[%clk 00:12:38]} {[%emt 00:01:22]} b5 {[%clk 00:08:31]} {[%emt 00:00:36]} 10.
e5 {[%clk 00:12:24]} {[%emt 00:00:19]} Nb4 {[%clk 00:07:57]} {[%emt 00:00:39]}
11. Qg3 {[%clk 00:10:27]} {[%emt 00:02:02]} Ne8 {[%clk 00:06:52]} {[%emt
00:01:10]} 12. Bf3 {[%clk 00:10:13]} {[%emt 00:00:19]} Rb8 {[%clk 00:06:26]}
{[%emt 00:00:32]} 13. a3 {[%clk 00:09:57]} {[%emt 00:00:21]} Nc6 {[%clk
00:04:06]} {[%emt 00:02:24]} 14. Bxc6 {[%clk 00:09:50]} {[%emt 00:00:12]} Qc7
{[%clk 00:04:00]} {[%emt 00:00:11]} 15. Be4 {[%clk 00:09:38]} {[%emt 00:00:17]}
b4 {[%clk 00:04:00]} {[%emt 00:00:06]} 16. axb4 {[%clk 00:09:25]} {[%emt
00:00:18]} Bxb4 {[%clk 00:03:33]} {[%emt 00:00:32]} 17. Nge2 {[%clk 00:09:28]}
{[%emt 00:00:03]} Qa5 {[%clk 00:02:57]} {[%emt 00:00:40]} 18. Qd3 {[%clk
00:08:20]} {[%emt 00:01:12]} Nc7 {[%clk 00:00:40]} {[%emt 00:02:22]} 19. Bxh7+
{[%clk 00:06:43]} {[%emt 00:01:43]} Kh8 {[%clk 00:00:43]} 20. Be4 {[%clk
00:06:20]} {[%emt 00:00:28]} Nb5 {[%clk 00:00:24]} {[%emt 00:00:25]} 21. Nb1
{[%clk 00:06:09]} {[%emt 00:00:16]} Qa1 {[%clk 00:00:18]} {[%emt 00:00:10]} 22.
Qf3 {[%clk 00:05:52]} {[%emt 00:00:22]} g6 {[%clk 00:00:20]} {[%emt 00:00:03]}
23. h5 {[%clk 00:05:44]} {[%emt 00:00:13]} Kg7 {[%clk 00:00:23]} {[%emt
00:00:02]} 24. hxg6 {[%clk 00:05:46]} {[%emt 00:00:03]} fxg6 {[%clk 00:00:26]}
{[%emt 00:00:01]} 25. Bh6+ {[%clk 00:05:50]} {[%emt 00:00:02]} Kg8 {[%clk
00:00:27]} {[%emt 00:00:04]} 26. Bxf8 {[%clk 00:05:45]} {[%emt 00:00:10]} Na3
{[%clk 00:00:29]} {[%emt 00:00:03]} 27. Rh8+ {[%clk 00:05:17]} {[%emt
00:00:33]} Kxh8 {[%clk 00:00:28]} {[%emt 00:00:07]} 28. Qf6+ {[%clk 00:05:20]}
{[%emt 00:00:01]} Kh7 {[%clk 00:00:30]} {[%emt 00:00:02]} 29. Qg7# {[%clk
00:05:24]} {[%emt 00:00:02]} 1-0

[Event "MČR juniorů a juniorek v rapid šachu 2023"]
[Site "Czech Republic"]
[Date "2023.09.23"]
[Round "2.13"]
[White "Martinkovic, Adam"]
[Black "Pejrimovska, Viola Ruby"]
[Result "1/2-1/2"]
[TimeControl "20 min + 5 sec per move"]
[WhiteFideId "23728019"]
[BlackFideId "23709529"]
[WhiteElo "1807"]
[BlackElo "1581"]

1. c4 {[%clk 00:20:07]} {[%emt 00:00:03]} Nf6 {[%clk 00:20:08]} {[%emt
00:00:03]} 2. Nc3 {[%clk 00:20:10]} {[%emt 00:00:01]} g6 {[%clk 00:20:11]}
{[%emt 00:00:02]} 3. g3 {[%clk 00:20:14]} Bg7 {[%clk 00:20:10]} {[%emt
00:00:07]} 4. Bg2 {[%clk 00:20:17]} O-O {[%clk 00:20:13]} {[%emt 00:00:03]} 5.
e3 {[%clk 00:20:20]} d6 {[%clk 00:20:15]} {[%emt 00:00:03]} 6. Nge2 {[%clk
00:20:17]} {[%emt 00:00:08]} e5 {[%clk 00:20:17]} {[%emt 00:00:03]} 7. d4
{[%clk 00:20:17]} {[%emt 00:00:05]} Nfd7 {[%clk 00:17:27]} {[%emt 00:02:55]} 8.
d5 {[%clk 00:19:27]} {[%emt 00:00:55]} f5 {[%clk 00:17:10]} {[%emt 00:00:23]} 9.
e4 {[%clk 00:19:13]} {[%emt 00:00:18]} Nf6 {[%clk 00:16:11]} {[%emt 00:01:04]}
10. O-O {[%clk 00:17:58]} {[%emt 00:01:21]} Na6 {[%emt 00:00:59]} 11. f3 {[%clk
00:15:47]} {[%emt 00:02:14]} h6 {[%clk 00:12:51]} {[%emt 00:02:32]} 12. a3
{[%clk 00:14:10]} {[%emt 00:01:42]} Nh7 {[%clk 00:11:04]} {[%emt 00:01:52]} 13.
Be3 {[%clk 00:12:39]} {[%emt 00:01:36]} Rf7 {[%clk 00:07:46]} {[%emt 00:03:23]}
14. Qd2 {[%clk 00:12:03]} {[%emt 00:00:40]} g5 {[%clk 00:07:46]} {[%emt
00:00:06]} 15. exf5 {[%clk 00:11:57]} {[%emt 00:00:12]} Bxf5 {[%clk 00:07:15]}
{[%emt 00:00:35]} 16. Ne4 {[%clk 00:11:31]} {[%emt 00:00:31]} Nf8 {[%clk
00:04:25]} {[%emt 00:02:56]} 17. b4 {[%clk 00:10:50]} {[%emt 00:00:45]} b6
{[%clk 00:04:07]} {[%emt 00:00:23]} 18. Rac1 {[%clk 00:10:26]} {[%emt
00:00:29]} Nd7 {[%clk 00:03:17]} {[%emt 00:00:55]} 19. N2c3 {[%clk 00:09:13]}
{[%emt 00:01:19]} Bf8 {[%clk 00:03:09]} {[%emt 00:00:12]} 20. Rf2 {[%clk
00:07:37]} {[%emt 00:01:41]} Rg7 {[%clk 00:02:40]} {[%emt 00:00:34]} 21. Bf1
{[%clk 00:06:53]} {[%emt 00:00:49]} Nab8 {[%clk 00:01:56]} {[%emt 00:00:50]} 22.
Bd3 {[%clk 00:04:57]} {[%emt 00:02:00]} Bh7 {[%clk 00:00:56]} {[%emt 00:01:05]}
23. Kf1 {[%clk 00:03:11]} {[%emt 00:01:51]} a5 {[%clk 00:00:57]} {[%emt
00:00:04]} 24. b5 {[%clk 00:03:04]} {[%emt 00:00:12]} Be7 {[%clk 00:00:45]}
{[%emt 00:00:17]} 25. Ke2 {[%clk 00:02:57]} {[%emt 00:00:11]} Nf8 {[%clk
00:00:42]} {[%emt 00:00:09]} 26. Rg1 {[%clk 00:02:38]} {[%emt 00:00:23]} Ng6
{[%clk 00:00:45]} {[%emt 00:00:03]} 27. Kd1 {[%clk 00:02:36]} {[%emt 00:00:06]}
Nd7 {[%clk 00:00:47]} {[%emt 00:00:03]} 28. Kc1 {[%clk 00:01:55]} {[%emt
00:00:46]} Nc5 {[%clk 00:00:32]} {[%emt 00:00:21]} 29. Nxc5 {[%clk 00:01:45]}
{[%emt 00:00:15]} dxc5 {[%clk 00:00:30]} {[%emt 00:00:07]} 30. Ne4 {[%clk
00:01:30]} {[%emt 00:00:19]} Qd7 {[%clk 00:00:17]} {[%emt 00:00:19]} 31. a4
{[%clk 00:01:29]} {[%emt 00:00:06]} Rf8 {[%clk 00:00:20]} {[%emt 00:00:02]} 32.
Qe2 {[%clk 00:01:16]} {[%emt 00:00:17]} Rgf7 {[%clk 00:00:17]} {[%emt
00:00:08]} 33. Rgf1 {[%clk 00:01:08]} {[%emt 00:00:13]} Kg7 {[%clk 00:00:07]}
{[%emt 00:00:15]} 34. Bd2 {[%clk 00:01:04]} {[%emt 00:00:08]} Bd6 {[%clk
00:00:10]} {[%emt 00:00:02]} 35. Bc3 {[%clk 00:01:05]} {[%emt 00:00:05]} Kg8
{[%clk 00:00:10]} {[%emt 00:00:05]} 36. Kb2 {[%clk 00:00:51]} {[%emt 00:00:18]}
Ne7 {[%clk 00:00:13]} {[%emt 00:00:02]} 37. h4 {[%clk 00:00:22]} {[%emt
00:00:34]} gxh4 {[%clk 00:00:17]} {[%emt 00:00:01]} 38. gxh4 {[%clk 00:00:26]}
{[%emt 00:00:01]} Nf5 {[%clk 00:00:15]} {[%emt 00:00:07]} 39. Rg1+ {[%clk
00:00:22]} {[%emt 00:00:09]} Kh8 {[%clk 00:00:19]} 40. Rh2 {[%clk 00:00:13]}
{[%emt 00:00:15]} Nd4 {[%clk 00:00:20]} {[%emt 00:00:04]} 41. Bxd4 {[%clk
00:00:11]} {[%emt 00:00:07]} exd4 {[%clk 00:00:21]} {[%emt 00:00:03]} 42. Rf2
{[%clk 00:00:08]} {[%emt 00:00:08]} Bf4 {[%clk 00:00:19]} {[%emt 00:00:07]} 43.
Rg4 {[%clk 00:00:09]} {[%emt 00:00:04]} Be3 {[%clk 00:00:07]} {[%emt 00:00:17]}
44. Rf1 {[%clk 00:00:13]} {[%emt 00:00:02]} h5 {[%clk 00:00:06]} {[%emt
00:00:05]} 45. Rg5 {[%clk 00:00:14]} {[%emt 00:00:04]} Bxg5 {[%clk 00:00:09]}
{[%emt 00:00:02]} 46. Nxg5 {[%clk 00:00:18]} {[%emt 00:00:02]} Bxd3 {[%clk
00:00:11]} {[%emt 00:00:02]} 47. Nxf7+ {[%clk 00:00:21]} {[%emt 00:00:02]} Qxf7
{[%clk 00:00:13]} {[%emt 00:00:03]} 48. Qxd3 {[%clk 00:00:23]} {[%emt
00:00:03]} Qf5 {[%clk 00:00:16]} {[%emt 00:00:02]} 49. Qxf5 {[%clk 00:00:15]}
{[%emt 00:00:13]} Rxf5 {[%clk 00:00:20]} {[%emt 00:00:02]} 50. f4 {[%clk
00:00:19]} {[%emt 00:00:01]} Kh7 {[%clk 00:00:23]} {[%emt 00:00:01]} 51. Kc2
{[%clk 00:00:23]} {[%emt 00:00:02]} Kg6 {[%clk 00:00:19]} {[%emt 00:00:08]} 52.
Kd3 {[%clk 00:00:27]} {[%emt 00:00:01]} Rf7 {[%clk 00:00:11]} {[%emt 00:00:14]}
53. Rg1+ {[%clk 00:00:21]} {[%emt 00:00:11]} Kf5 {[%clk 00:00:08]} {[%emt
00:00:07]} 54. Rg5+ {[%clk 00:00:19]} {[%emt 00:00:07]} Kxf4 {[%clk 00:00:12]}
{[%emt 00:00:02]} 55. Rxh5 {[%clk 00:00:22]} {[%emt 00:00:02]} Kg4 {[%clk
00:00:16]} 56. Rh8 {[%clk 00:00:22]} {[%emt 00:00:05]} Re7 {[%clk 00:00:12]}
{[%emt 00:00:09]} 57. Kd2 {[%clk 00:00:14]} {[%emt 00:00:14]} Kf5 {[%clk
00:00:09]} {[%emt 00:00:07]} 58. h5 {[%clk 00:00:11]} {[%emt 00:00:08]} Kg5
{[%clk 00:00:12]} {[%emt 00:00:02]} 59. h6 {[%clk 00:00:07]} {[%emt 00:00:09]}
Kg6 {[%clk 00:00:16]} 60. Kd3 {[%clk 00:00:07]} {[%emt 00:00:06]} Re3+ {[%clk
00:00:17]} {[%emt 00:00:04]} 61. Kd2 {[%clk 00:00:11]} Re7 {[%clk 00:00:20]}
{[%emt 00:00:03]} 62. Kd3 {[%clk 00:00:14]} {[%emt 00:00:01]} Re3+ {[%clk
00:00:24]} 63. Kd2 {[%clk 00:00:17]} {[%emt 00:00:03]} 1/2-1/2